[Event "Marshall CC FIDE Premier November 2024"]
[Site "New York"]
[Date "2024.11.04"]
[Round "5.5"]
[White "Ayyappan, Santhosh"]
[Black "Kozower, Ethan"]
[Result "1/2-1/2"]
[ECO "B45"]
[WhiteElo "1933"]
[BlackElo "1985"]
[Annotator "RC"]
[PlyCount "125"]
[EventDate "2024.11.01"]
[EventType "swiss"]
[EventCountry "USA"]
[SourceTitle "playchess.com"]
[Source "ChessBase"]
[SourceQuality "1"]
[TimeControl "5400+30"]

1. e4 {[%emt 0:00:01]} c5 {[%emt 0:01:46]} 2. Nf3 {[%emt 0:00:17]} Nc6 {[%emt 0:00:05]} 3. d4 {[%emt 0:00:06]} cxd4 {[%emt 0:00:11]} 4. Nxd4 {[%emt 0:00:10]} Nf6 {[%emt 0:00:24]} 5. Nc3 {[%emt 0:00:05]} e6 {[%emt 0:00:21]} 6. Be3 {[%emt 0:00:16]} Bb4 {[%emt 0:00:03]} 7. Bd3 {[%emt 0:00:34]} d5 {[%emt 0:00:36]} 8. Nxc6 {[%emt 0:01:35]} bxc6 {[%emt 0:00:58]} 9. exd5 {[%emt 0:00:25]} cxd5 {[%emt 0:02:30]} 10. O-O {[%emt 0:02:12]} O-O {[%emt 0:05:33]} 11. Bd4 {[%emt 0:01:08]} Bd6 {[%emt 0:06:02]} 12. f4 {[%emt 0:01:44]} Qe7 {[%emt 0:03:48]} 13. Kh1 {[%emt 0:02:11]} Bc5 {[%emt 0:04:44]} 14. Bxf6 {[%emt 0:01:12]} Qxf6 {[%emt 0:00:17]} 15. f5 {[%emt 0:00:17]} Qh6 {[%emt 0:13:07]} 16. Rf3 {[%emt 0:04:12]} exf5 {[%emt 0:03:59]} 17. Nxd5 {[%emt 0:02:46]} f4 {[%emt 0:02:28]} 18. Qd2 {[%emt 0:11:23]} Bg4 {[%emt 0:04:04]} 19. Rff1 {[%emt 0:00:52]} Be3 {[%emt 0:07:39]} 20. Nxe3 {[%emt 0:00:17]} fxe3 {[%emt 0:00:01]} 21. Qb4 {[%emt 0:00:15]} f5 {[%emt 0:03:19]} 22. Rae1 {[%emt 0:02:33]} f4 {[%emt 0:04:12]} 23. Bc4+ {[%emt 0:00:38]} Be6 {[%emt 0:03:16]} 24. Bxe6+ {[%emt 0:08:11]} Qxe6 {[%emt 0:00:03]} 25. Qb3 {[%emt 0:01:02]} Qxb3 {[%emt 0:01:14]} 26. axb3 {[%emt 0:01:04]} Rad8 {[%emt 0:05:09]} 27. Re2 {[%emt 0:00:11]} g5 {[%emt 0:06:28]} 28. g3 {[%emt 0:01:16]} Kg7 {[%emt 0:06:42]} 29. Kg2 {[%emt 0:00:32]} Kg6 {[%emt 0:07:11]} 30. b4 {[%emt 0:01:59]} Rd4 {[%emt 0:01:04]} 31. c3 {[%emt 0:00:07]} Rd3 {[%emt 0:00:35]} 32. gxf4 {[%emt 0:01:42]} gxf4 {[%emt 0:00:56]} 33. Kf3 {[%emt 0:00:06]} Kf5 {[%emt 0:01:25]} 34. Ra1 {[%emt 0:00:29]} Rd2 {[%emt 0:01:03]} 35. Rxd2 {[%emt 0:05:41]} exd2 {[%emt 0:00:01]} 36. Rd1 {[%emt 0:02:15]} Rd8 {[%emt 0:00:31]} 37. b5 {[%emt 0:01:02]} Ke5 {[%emt 0:03:26]} 38. b3 {[%emt 0:02:00]} Rd3+ {[%emt 0:00:20]} 39. Ke2 {[%emt 0:00:06]} Rxc3 {[%emt 0:00:03]} 40. Rxd2 {[%emt 0:00:11]} Rxb3 {[%emt 0:00:07]} 41. Rd7 {[%emt 0:00:05]} Rxb5 {[%emt 0:03:48]} 42. Rxa7 {[%emt 0:00:14]} h5 {[%emt 0:01:11]} 43. Re7+ {[%emt 0:00:06]} Kf5 {[%emt 0:00:08]} 44. Kf3 {[%emt 0:00:15]} Rb3+ {[%emt 0:00:18]} 45. Kg2 {[%emt 0:00:07]} Rb2+ {[%emt 0:01:00]} 46. Kf3 {[%emt 0:00:26]} Rb3+ {[%emt 0:00:15]} 47. Kg2 {[%emt 0:00:05]} f3+ {[%emt 0:00:58]} 48. Kg3 {[%emt 0:00:27]} h4+ {[%emt 0:00:33]} 49. Kxh4 {[%emt 0:00:15]} Kf4 {[%emt 0:00:30]} 50. Rf7+ {[%emt 0:02:01]} Ke3 {[%emt 0:00:01]} 51. Kg3 {[%emt 0:00:09]} Ke2 {[%emt 0:00:34]} 52. h4 {[%emt 0:00:14]} Rb4 {[%emt 0:00:59]} 53. h5 {[%emt 0:00:22]} Rb5 {[%emt 0:00:13]} 54. h6 {[%emt 0:01:05]} Rg5+ {[%emt 0:00:25]} 55. Kh4 {[%emt 0:00:09]} Rg1 {[%emt 0:00:16]} 56. h7 {[%emt 0:00:26]} f2 {[%emt 0:00:38]} 57. Kh5 {[%emt 0:00:52]} Rh1+ {[%emt 0:00:44]} 58. Kg6 {[%emt 0:00:07]} Rg1+ {[%emt 0:00:18]} 59. Kh6 {[%emt 0:00:03]} Rh1+ {[%emt 0:00:33]} 60. Kg7 {[%emt 0:00:06]} f1=Q {[%emt 0:00:13]} 61. Rxf1 {[%emt 0:00:09]} Kxf1 {[%emt 0:00:02]} 62. h8=Q {[%emt 0:00:12]} Rxh8 {[%emt 0:00:05]} 63. Kxh8 {[%emt 0:00:05]} 1/2-1/2

[Event "Marshall CC FIDE Premier November 2024"]
[Site "New York"]
[Date "2024.11.04"]
[Round "5.6"]
[White "Miller, Rachel"]
[Black "Shvarts, Tim"]
[Result "0-1"]
[ECO "C54"]
[WhiteElo "1935"]
[BlackElo "1902"]
[Annotator "RC"]
[PlyCount "130"]
[EventDate "2024.11.01"]
[EventType "swiss"]
[EventCountry "USA"]
[SourceTitle "playchess.com"]
[Source "ChessBase"]
[SourceQuality "1"]
[TimeControl "5400+30"]

1. e4 {[%emt 0:00:03]} e5 {[%emt 0:00:16]} 2. Nf3 {[%emt 0:00:09]} Nc6 {[%emt 0:00:08]} 3. Bc4 {[%emt 0:00:10]} Bc5 {[%emt 0:00:20]} 4. c3 {[%emt 1:32:08]} Nf6 {[%emt 0:00:16]} 5. d3 {[%emt 0:00:00]} O-O {[%emt 0:01:10]} 6. O-O {[%emt 0:00:00]} d6 {[%emt 0:02:10]} 7. Re1 {[%emt 0:01:30]} h6 {[%emt 0:01:44]} 8. h3 {[%emt 0:00:00]} Re8 {[%emt 0:03:29]} 9. a4 {[%emt 0:00:00]} a6 {[%emt 0:02:05]} 10. Nbd2 {[%emt 0:00:00]} Be6 {[%emt 0:03:24]} 11. Bxe6 {[%emt 0:00:00]} Rxe6 {[%emt 0:02:29]} 12. b4 {[%emt 0:00:00]} Ba7 {[%emt 0:02:37]} 13. b5 {[%emt 0:00:00]} Ne7 {[%emt 0:05:21]} 14. Bb2 {[%emt 0:00:00]} d5 {[%emt 0:05:40]} 15. Qb3 {[%emt 0:00:00]} Ng6 {[%emt 0:05:53]} 16. g3 {[%emt 0:00:00]} dxe4 {[%emt 0:04:09]} 17. dxe4 {[%emt 0:00:00]} Nh5 {[%emt 0:00:38]} 18. Kg2 {[%emt 0:00:00]} Qd7 {[%emt 0:03:02]} 19. Qc4 {[%emt 0:00:00]} Rd6 {[%emt 0:08:54]} 20. Qf1 {[%emt 0:00:00]} Rxd2 {[%emt 0:00:21]} 21. Nxd2 {[%emt 0:00:00]} Qxd2 {[%emt 0:00:08]} 22. Bc1 {[%emt 0:00:00]} Qxc3 {[%emt 0:03:20]} 23. Be3 {[%emt 0:00:00]} Qb4 {[%emt 0:02:50]} 24. Bxa7 {[%emt 0:00:00]} Rxa7 {[%emt 0:00:07]} 25. Rac1 {[%emt 0:00:00]} b6 {[%emt 0:14:30]} 26. bxa6 {[%emt 0:03:50]} Qxa4 {[%emt 0:02:11]} 27. Qc4 {[%emt 0:00:29]} Qxc4 {[%emt 0:00:58]} 28. Rxc4 {[%emt 0:00:03]} Nf8 {[%emt 0:00:09]} 29. Rd1 {[%emt 0:05:24]} Ne6 {[%emt 0:02:07]} 30. Rd5 {[%emt 0:00:05]} Rxa6 {[%emt 0:05:00]} 31. Rxe5 {[%emt 0:00:10]} Nf6 {[%emt 0:00:08]} 32. Rb5 {[%emt 0:01:23]} Nc5 {[%emt 0:01:19]} 33. e5 {[%emt 0:00:25]} Nfd7 {[%emt 0:00:57]} 34. f4 {[%emt 0:00:14]} Ra3 {[%emt 0:01:48]} 35. Rb2 {[%emt 0:00:25]} Kf8 {[%emt 0:02:02]} 36. Rd4 {[%emt 0:00:33]} Ke7 {[%emt 0:00:37]} 37. h4 {[%emt 0:00:16]} h5 {[%emt 0:00:18]} 38. Rbd2 {[%emt 0:00:58]} Ke6 {[%emt 0:00:36]} 39. Rb2 {[%emt 0:00:45]} g6 {[%emt 0:04:01]} 40. Rbd2 {[%emt 0:00:09]} Ke7 {[%emt 0:01:57]} 41. Kh2 {[%emt 0:00:33]} Nf8 {[%emt 0:01:46]} 42. Rg2 {[%emt 0:00:35]} Nfe6 {[%emt 0:00:07]} 43. Rdd2 {[%emt 0:00:17]} Ng7 {[%emt 0:01:37]} 44. Ra2 {[%emt 0:00:35]} Rc3 {[%emt 0:00:52]} 45. Rac2 {[%emt 0:00:05]} Rxc2 {[%emt 0:01:43]} 46. Rxc2 {[%emt 0:00:04]} Nf5 {[%emt 0:00:10]} 47. Rc3 {[%emt 0:00:55]} Ke6 {[%emt 0:00:34]} 48. Kh3 {[%emt 0:00:17]} Nh6 {[%emt 0:00:46]} 49. Ra3 {[%emt 0:00:20]} Kd5 {[%emt 0:01:03]} 50. Ra8 {[%emt 0:00:09]} Ke6 {[%emt 0:03:50]} 51. Re8+ {[%emt 0:00:18]} Kd7 {[%emt 0:00:06]} 52. Rh8 {[%emt 0:00:09]} Ng4 {[%emt 0:00:13]} 53. Rf8 {[%emt 0:01:36]} b5 {[%emt 0:01:00]} 54. Rxf7+ {[%emt 0:00:05]} Kc6 {[%emt 0:00:08]} 55. Rg7 {[%emt 0:01:02]} b4 {[%emt 0:02:09]} 56. Rxg6+ {[%emt 0:00:05]} Kd5 {[%emt 0:00:15]} 57. Rg5 {[%emt 0:01:33]} Nf2+ {[%emt 0:01:49]} 58. Kg2 {[%emt 0:00:10]} Nfe4 {[%emt 0:00:08]} 59. e6+ {[%emt 0:00:41]} Kxe6 {[%emt 0:00:26]} 60. Rxh5 {[%emt 0:00:53]} b3 {[%emt 0:00:28]} 61. Rh8 {[%emt 0:00:06]} Nd6 {[%emt 0:01:59]} 62. Rh5 {[%emt 0:00:34]} Nd7 {[%emt 0:00:30]} 63. Rh8 {[%emt 0:00:19]} b2 {[%emt 0:00:15]} 64. f5+ {[%emt 0:00:42]} Nxf5 {[%emt 0:00:19]} 65. Re8+ {[%emt 0:00:27]} Ne7 {[%emt 0:00:06]} 0-1

[Event "Marshall CC FIDE Premier November 2024"]
[Site "New York"]
[Date "2024.11.04"]
[Round "5.7"]
[White "Berg, George"]
[Black "Levine, Owen"]
[Result "0-1"]
[ECO "B91"]
[WhiteElo "1952"]
[BlackElo "1998"]
[Annotator "RC"]
[PlyCount "94"]
[EventDate "2024.11.01"]
[EventType "swiss"]
[EventCountry "USA"]
[SourceTitle "playchess.com"]
[Source "ChessBase"]
[SourceQuality "1"]
[TimeControl "5400+30"]

1. e4 {[%emt 0:00:02]} c5 {[%emt 0:00:14]} 2. Nf3 {[%emt 0:00:05]} d6 {[%emt 0:00:03]} 3. d4 {[%emt 0:00:06]} cxd4 {[%emt 0:00:04]} 4. Nxd4 {[%emt 0:00:04]} Nf6 {[%emt 0:00:07]} 5. Nc3 {[%emt 0:00:06]} a6 {[%emt 0:00:03]} 6. g3 {[%emt 0:00:06]} e5 {[%emt 0:00:06]} 7. Nb3 {[%emt 0:00:25]} Be7 {[%emt 0:00:22]} 8. Bg2 {[%emt 0:00:08]} O-O {[%emt 0:00:07]} 9. O-O {[%emt 0:00:04]} Be6 {[%emt 0:00:15]} 10. a4 {[%emt 0:00:06]} Nbd7 {[%emt 0:00:05]} 11. a5 {[%emt 0:01:11]} Rc8 {[%emt 0:00:55]} 12. h3 {[%emt 0:01:04]} Qc7 {[%emt 0:04:15]} 13. Re1 {[%emt 0:05:24]} Rfd8 {[%emt 0:01:25]} 14. Nd2 {[%emt 0:00:43]} Nb8 {[%emt 0:09:27]} 15. Nf1 {[%emt 0:01:27]} Nc6 {[%emt 0:02:16]} 16. Bd2 {[%emt 0:01:35]} d5 {[%emt 0:06:24]} 17. exd5 {[%emt 0:01:09]} Nxd5 {[%emt 0:00:09]} 18. Nxd5 {[%emt 0:00:19]} Bxd5 {[%emt 0:00:07]} 19. Bxd5 {[%emt 0:00:05]} Rxd5 {[%emt 0:00:08]} 20. Ne3 {[%emt 0:00:03]} Rd7 {[%emt 0:15:35]} 21. c4 {[%emt 0:07:09]} Nd4 {[%emt 0:06:35]} 22. Nd5 {[%emt 0:02:09]} Qxc4 {[%emt 0:08:20]} 23. Nb6 {[%emt 0:00:15]} Qc6 {[%emt 0:01:21]} 24. Nxd7 {[%emt 0:00:56]} Nf3+ {[%emt 0:01:40]} 25. Kf1 {[%emt 0:02:39]} Nxe1 {[%emt 0:06:26]} 26. Qxe1 {[%emt 0:03:23]} Qxd7 {[%emt 0:00:17]} 27. Kg2 {[%emt 0:00:47]} Rc2 {[%emt 0:03:56]} 28. Rd1 {[%emt 0:02:10]} f6 {[%emt 0:00:26]} 29. Bc3 {[%emt 0:01:32]} Qc6+ {[%emt 0:00:21]} 30. Kg1 {[%emt 0:00:18]} Bc5 {[%emt 0:02:42]} 31. Rd2 {[%emt 0:00:11]} Rxd2 {[%emt 0:00:58]} 32. Bxd2 {[%emt 0:02:49]} Qf3 {[%emt 0:01:48]} 33. Be3 {[%emt 0:00:05]} Bxe3 {[%emt 0:00:13]} 34. fxe3 {[%emt 0:00:05]} Qd5 {[%emt 0:00:54]} 35. Qc3 {[%emt 0:02:39]} e4 {[%emt 0:01:07]} 36. g4 {[%emt 0:04:36]} h5 {[%emt 0:05:00]} 37. gxh5 {[%emt 0:00:45]} Kh7 {[%emt 0:02:09]} 38. Qe1 {[%emt 0:14:11]} Qxh5 {[%emt 0:00:34]} 39. Kh2 {[%emt 0:00:59]} Kg8 {[%emt 0:01:49]} 40. Qb4 {[%emt 0:04:30]} Qe2+ {[%emt 0:00:53]} 41. Kh1 {[%emt 0:00:15]} Qxe3 {[%emt 0:00:50]} 42. Qxb7 {[%emt 0:00:07]} Qd3 {[%emt 0:02:55]} 43. Qc8+ {[%emt 0:03:48]} Kf7 {[%emt 0:00:19]} 44. Qc7+ {[%emt 0:00:08]} Kg6 {[%emt 0:00:33]} 45. Qf4 {[%emt 0:00:15]} Qb1+ {[%emt 0:00:51]} 46. Kg2 {[%emt 0:01:08]} Qxb2+ {[%emt 0:00:05]} 47. Kg3 {[%emt 0:00:24]} Qe5 {[%emt 0:01:32]} 0-1

[Event "Marshall CC FIDE Premier November 2024"]
[Site "New York"]
[Date "2024.11.04"]
[Round "5.8"]
[White "Cheung, Kyle"]
[Black "Marzouq, Chowdhury"]
[Result "1-0"]
[ECO "B90"]
[WhiteElo "1882"]
[BlackElo "1948"]
[Annotator "RC"]
[PlyCount "105"]
[EventDate "2024.11.01"]
[EventType "swiss"]
[EventCountry "USA"]
[SourceTitle "playchess.com"]
[Source "ChessBase"]
[SourceQuality "1"]
[TimeControl "5400+30"]

1. e4 {[%emt 0:00:02]} c5 {[%emt 0:00:46]} 2. Nf3 {[%emt 0:00:02]} d6 {[%emt 0:00:09]} 3. d4 {[%emt 0:00:02]} cxd4 {[%emt 0:00:08]} 4. Nxd4 {[%emt 0:00:01]} Nf6 {[%emt 0:00:08]} 5. Nc3 {[%emt 0:00:06]} a6 {[%emt 0:00:03]} 6. Be3 {[%emt 0:00:11]} e5 {[%emt 0:00:06]} 7. Nb3 {[%emt 0:00:03]} Be7 {[%emt 0:00:06]} 8. f3 {[%emt 0:00:06]} Be6 {[%emt 0:00:19]} 9. Qd2 {[%emt 0:00:02]} h5 {[%emt 0:00:08]} 10. Be2 {[%emt 0:04:24]} Nbd7 {[%emt 0:00:39]} 11. O-O {[%emt 0:04:47]} Qc7 {[%emt 0:03:12]} 12. Rad1 {[%emt 0:04:35]} O-O {[%emt 0:03:08]} 13. h3 {[%emt 0:04:39]} Nb6 {[%emt 0:02:41]} 14. Bxb6 {[%emt 0:12:00]} Qxb6+ {[%emt 0:00:02]} 15. Kh1 {[%emt 0:01:07]} Rfd8 {[%emt 0:05:49]} 16. f4 {[%emt 0:01:39]} exf4 {[%emt 0:00:19]} 17. Qxf4 {[%emt 0:01:11]} g6 {[%emt 0:08:10]} 18. Qh6 {[%emt 0:14:39]} Bf8 {[%emt 1:13:37]} 19. Qg5 {[%emt 0:02:22]} Nh7 {[%emt 0:00:00]} 20. Qf4 {[%emt 0:07:03]} Bg7 {[%emt 0:00:00]} 21. Nd5 {[%emt 0:11:13]} Bxd5 {[%emt 0:00:00]} 22. Rxd5 {[%emt 0:00:16]} Nf6 {[%emt 0:00:00]} 23. Rd2 {[%emt 0:01:51]} Rac8 {[%emt 0:00:00]} 24. c3 {[%emt 0:02:39]} Qc6 {[%emt 0:00:00]} 25. Bf3 {[%emt 0:01:18]} Qa4 {[%emt 0:00:00]} 26. Rfd1 {[%emt 0:04:36]} Ne8 {[%emt 0:00:00]} 27. Nc1 {[%emt 0:04:10]} Be5 {[%emt 0:00:00]} 28. Qe3 {[%emt 0:01:35]} Ng7 {[%emt 0:00:00]} 29. Nd3 {[%emt 0:02:50]} Bf6 {[%emt 0:00:00]} 30. Nb4 {[%emt 0:00:26]} Be5 {[%emt 0:00:00]} 31. Nd5 {[%emt 0:01:39]} Qe8 {[%emt 0:00:00]} 32. Qg5 {[%emt 0:03:27]} Kf8 {[%emt 0:00:00]} 33. Qh6 {[%emt 0:01:56]} Kg8 {[%emt 0:00:00]} 34. g4 {[%emt 0:00:48]} hxg4 {[%emt 0:00:00]} 35. hxg4 {[%emt 0:00:46]} Ne6 {[%emt 0:00:00]} 36. Rh2 {[%emt 0:00:45]} Rc5 {[%emt 0:00:00]} 37. g5 {[%emt 0:02:50]} Rxd5 {[%emt 0:00:00]} 38. exd5 {[%emt 0:00:20]} Nf4 {[%emt 0:00:00]} 39. c4 {[%emt 0:04:22]} Bg7 {[%emt 0:00:00]} 40. Qh7+ {[%emt 0:00:25]} Kf8 {[%emt 0:00:00]} 41. Qh4 {[%emt 0:00:43]} Qe3 {[%emt 0:00:00]} 42. Qf2 {[%emt 0:00:58]} Qe5 {[%emt 0:12:00]} 43. Qg3 {[%emt 0:01:55]} Qf5 {[%emt 0:00:00]} 44. Qg4 {[%emt 0:00:48]} Qe5 {[%emt 0:00:00]} 45. Rh4 {[%emt 0:00:29]} Nh5 {[%emt 0:00:00]} 46. Qg2 {[%emt 0:00:31]} Ng3+ {[%emt 0:00:00]} 47. Kg1 {[%emt 0:00:07]} Nf5 {[%emt 0:00:00]} 48. Re4 {[%emt 0:00:19]} Qxb2 {[%emt 0:00:00]} 49. Qxb2 {[%emt 0:00:10]} Bxb2 {[%emt 0:00:00]} 50. Rb1 {[%emt 0:00:12]} Bd4+ {[%emt 0:00:00]} 51. Kg2 {[%emt 0:00:38]} Rd7 {[%emt 0:00:00]} 52. Bg4 {[%emt 0:00:26]} Ne3+ {[%emt 0:00:00]} 53. Rxe3 {[%emt 0:00:09]} 1-0

[Event "Marshall CC FIDE Premier November 2024"]
[Site "New York"]
[Date "2024.11.04"]
[Round "5.9"]
[White "Knowles, Chase"]
[Black "Shankar, Pranav"]
[Result "1-0"]
[ECO "A13"]
[WhiteElo "1966"]
[BlackElo "1956"]
[Annotator "RC"]
[PlyCount "55"]
[EventDate "2024.11.01"]
[EventType "swiss"]
[EventCountry "USA"]
[SourceTitle "playchess.com"]
[Source "ChessBase"]
[SourceQuality "1"]
[TimeControl "5400+30"]

1. Nf3 {[%emt 0:00:02]} Nf6 {[%emt 0:02:44]} 2. c4 {[%emt 0:00:04]} e6 {[%emt 0:00:29]} 3. e3 {[%emt 0:00:08]} b6 {[%emt 0:00:15]} 4. Nc3 {[%emt 0:00:09]} Bb7 {[%emt 0:00:23]} 5. b3 {[%emt 0:00:27]} d5 {[%emt 0:00:09]} 6. Bb2 {[%emt 0:00:31]} Nbd7 {[%emt 0:01:05]} 7. Qc2 {[%emt 0:00:11]} a6 {[%emt 0:00:36]} 8. Be2 {[%emt 0:00:28]} Bd6 {[%emt 0:02:50]} 9. Rg1 {[%emt 0:08:02]} c6 {[%emt 0:11:00]} 10. g4 {[%emt 0:02:16]} e5 {[%emt 0:01:35]} 11. g5 {[%emt 0:00:52]} Ng8 {[%emt 0:00:51]} 12. Nh4 {[%emt 0:06:51]} Ne7 {[%emt 0:11:30]} 13. Nf5 {[%emt 0:05:46]} Nxf5 {[%emt 0:00:32]} 14. Qxf5 {[%emt 0:00:06]} O-O {[%emt 0:08:33]} 15. Bd3 {[%emt 0:13:10]} g6 {[%emt 0:09:55]} 16. Qh3 {[%emt 0:01:20]} Nc5 {[%emt 0:02:25]} 17. Bc2 {[%emt 0:01:03]} Ne6 {[%emt 0:11:58]} 18. Qg2 {[%emt 0:04:39]} Be7 {[%emt 0:04:26]} 19. h4 {[%emt 0:00:28]} b5 {[%emt 0:01:19]} 20. Ne2 {[%emt 0:04:58]} Bd6 {[%emt 0:06:04]} 21. h5 {[%emt 0:05:50]} Qe7 {[%emt 0:04:15]} 22. Qg4 {[%emt 0:15:02]} Rad8 {[%emt 0:01:26]} 23. f4 {[%emt 0:01:31]} dxc4 {[%emt 0:01:05]} 24. Ng3 {[%emt 0:06:50]} Bb4 {[%emt 0:02:34]} 25. Ne4 {[%emt 0:00:55]} Nxf4 {[%emt 0:01:36]} 26. exf4 {[%emt 0:02:21]} exf4 {[%emt 0:02:02]} 27. Kf1 {[%emt 0:01:58]} f5 {[%emt 0:00:22]} 28. gxf6 {[%emt 0:00:28]} 1-0